bitfinex/quotes_ETHUSD_20251120
["timestamp","ask_amount","ask_price","bid_price","bid_amount"]
[1763616008918,0.002,3046.2,3045.9,5.90751177]
[1763616009122,4.27784459,3046.0,3045.9,5.90751177]
[1763616010034,4.27784459,3046.0,3045.9,6.81450441]
[1763616010201,0.111,3047.0,3046.1,6.18666262]
[1763616010402,0.111,3047.0,3046.9,3.22638131]
[1763616010639,0.4845,3047.1,3046.9,3.22638131]
[1763616010805,0.002,3047.6,3047.5,0.4505]
[1763616010999,0.002,3047.6,3047.5,6.50775948]
[1763616011199,0.002,3047.6,3047.5,6.97645948]
[1763616011635,0.002,3047.6,3047.5,6.50775948]
[1763616011805,0.002,3047.6,3047.5,6.97645948]
[1763616012206,0.002,3047.6,3047.5,7.95980732]
[1763616012403,0.002,3047.6,3047.5,7.49110732]
[1763616012711,0.002,3047.6,3047.5,6.50775948]
[1763616014531,0.002,3047.6,3047.5,6.97645948]
[1763616014702,0.002,3048.0,3047.5,14.44620846]
[1763616014912,0.002,3048.0,3047.9,6.00226262]
[1763616015129,0.002,3048.0,3047.9,9.28321015]
[1763616015302,0.002,3048.0,3047.9,11.33644284]
[1763616015507,0.002,3048.3,3048.0,0.90699264]
[1763616015709,0.002,3048.3,3048.2,4.31777395]
[1763616015917,0.002,3048.3,3048.2,4.13337395]
[1763616016418,0.002,3048.3,3048.2,7.37795526]
[1763616016618,0.002,3048.3,3048.2,8.12998079]
[1763616017234,0.002,3048.3,3048.2,11.41060542]
[1763616017436,0.002,3048.3,3048.2,8.63472411]
[1763616017639,0.002,3048.3,3048.2,4.63811727]
[1763616017839,0.4089,3048.3,3048.2,3.28062463]
[1763616018025,0.4089,3048.3,3048.2,2.77588131]
[1763616018236,0.002,3048.3,3048.2,6.50700594]
[1763616022146,0.002,3048.3,3048.2,6.05650594]
[1763616022147,0.4604,3048.3,3048.2,6.05650594]
[1763616022720,0.002,3048.3,3048.2,6.50700594]
[1763616023068,0.002,3048.3,3047.9,0.5797]
[1763616023069,0.8931,3048.3,3047.5,6.56275634]
[1763616023223,0.0043,3048.2,3047.6,2.77588131]
[1763616023423,0.4888,3048.2,3047.6,2.77588131]
[1763616023662,0.4888,3048.2,3047.8,2.77588131]
[1763616023848,0.4026,3047.9,3047.8,2.77588131]
[1763616025158,0.8926,3047.9,3047.5,6.05725948]
[1763616025369,0.8926,3047.9,3047.5,9.33863765]
[1763616025370,0.4845,3047.8,3047.5,9.33863765]
[1763616025970,0.002,3048.3,3047.7,3.22638131]
[1763616026267,0.4865,3048.3,3047.9,2.77588131]
[1763616026726,0.4069,3048.0,3047.9,2.77588131]
[1763616027353,0.4865,3048.3,3047.9,3.24908131]
[1763616027553,0.002,3048.3,3048.1,2.77588131]
[1763616027954,0.002,3048.3,3048.2,3.28062463]
[1763616028356,0.002,3048.3,3048.2,3.75382463]
[1763616028527,0.002,3048.3,3048.2,3.28062463]
[1763616028528,0.4066,3048.3,3048.2,3.28062463]
[1763616028726,0.8926,3048.3,3048.2,3.28062463]
[1763616028922,0.8926,3048.3,3048.1,3.28069015]
[1763616029158,0.4869,3048.2,3048.1,3.28069015]
[1763616029353,0.8915,3048.2,3048.1,3.28069015]
[1763616029658,0.002,3048.3,3048.1,9.33730371]
[1763616029828,0.4054,3048.2,3048.1,6.05657146]
[1763616030862,0.4054,3048.2,3048.1,3.28069015]
[1763616031780,0.8906,3048.2,3048.0,3.28079233]
[1763616031934,0.8906,3048.2,3048.0,6.56163222]
[1763616032127,0.002,3048.3,3048.0,6.56163222]
[1763616032128,0.4062,3048.1,3048.0,3.28079233]
[1763616032381,0.8906,3048.1,3047.6,6.562541]
[1763616032581,0.8906,3048.1,3047.3,3.28159354]
[1763616032582,0.0048,3047.9,3047.3,3.28159354]
[1763616032766,0.0048,3047.9,3047.3,10.87188378]
[1763616032947,0.1941,3047.8,3047.3,10.87188378]
[1763616033497,0.681,3047.8,3047.3,10.87188378]
[1763616034670,0.681,3047.8,3047.3,7.59029024]
[1763616034872,0.4869,3047.7,3047.3,7.59029024]
[1763616035235,0.4869,3047.7,3047.3,6.56318708]
[1763616035590,0.4869,3047.7,3046.6,6.56469506]
[1763616035591,0.4104,3047.4,3046.6,6.56469506]
[1763616035734,0.4104,3046.7,3046.2,3.11737213]
[1763616036040,0.4104,3046.7,3046.2,9.68292921]
[1763616036243,0.8939,3046.7,3046.2,9.68292921]
[1763616036637,0.8939,3046.7,3046.2,10.16232921]
[1763616036836,0.8939,3046.7,3046.3,1.36295757]
[1763616037061,0.4104,3046.7,3046.3,1.36295757]
[1763616037264,1.09648867,3047.3,3046.3,1.36295757]
[1763616037265,0.5979,3047.3,3046.6,0.4732]
[1763616037459,0.5979,3047.3,3046.3,4.4803297]
[1763616037460,0.4078,3046.7,3046.3,4.4803297]
[1763616037661,0.4078,3046.7,3046.4,1.10458868]
[1763616039051,0.4078,3046.7,3046.5,3.28245527]
[1763616039744,0.405504,3047.6,3046.6,4.06287213]
[1763616039951,0.111,3047.5,3046.8,0.4778]
[1763616040150,0.41733233,3047.5,3046.8,0.4778]
[1763616040351,0.4542,3047.4,3046.8,0.4778]
[1763616040588,0.76053233,3047.4,3046.8,0.4778]
[1763616040741,0.4542,3047.4,3046.9,3.11737213]
[1763616041079,0.4542,3047.4,3047.0,6.56383326]
[1763616041582,0.4472,3047.1,3047.0,3.28191663]
[1763616043795,0.4472,3047.1,3046.8,3.28202621]
[1763616043981,0.1915,3046.9,3046.3,0.001]
[1763616044181,0.1915,3046.9,3045.4,0.001]
[1763616044182,0.405504,3046.2,3045.9,0.001]
[1763616044386,4.42986877,3046.0,3045.9,0.001]
[1763616044582,0.405504,3045.6,3045.4,0.001]
[1763616044807,2.94378216,3045.5,3045.4,0.001]
[1763616044963,2.22890713,3045.5,3045.4,0.001]
[1763616045293,6.26833523,3045.5,3045.4,0.001]
[1763616045494,6.52780541,3045.5,3045.4,0.001]
[1763616046304,3.13327233,3045.5,3045.4,0.001]
[1763616046597,0.24245894,3045.5,3045.4,0.001]
[1763616046803,0.33735894,3045.5,3045.4,0.001]
[1763616047305,0.78795894,3045.5,3045.4,0.001]
[1763616048525,5.38398866,3045.5,3045.4,0.001]
[1763616048680,2.85619617,3045.5,3045.4,0.001]
[1763616048882,2.10045558,3045.5,3045.4,0.001]
[1763616049093,5.38398866,3045.5,3045.4,0.001]
[1763616049583,2.10045558,3045.5,3045.4,0.001]
[1763616049785,1.98945558,3045.5,3045.4,0.001]
[1763616049994,1.13335158,3045.5,3045.4,0.001]
[1763616050211,0.4506,3045.8,3045.4,0.001]
[1763616050386,0.111,3045.5,3045.4,0.001]
[1763616051215,0.2094,3045.5,3045.4,0.001]
[1763616055114,0.6565,3045.5,3045.4,0.001]
[1763616055313,1.14528986,3045.5,3045.4,0.001]
[1763616055524,0.6565,3045.5,3045.4,0.001]
[1763616056788,0.002,3045.6,3045.4,0.001]
[1763616056989,0.002,3045.6,3045.5,0.9455]
[1763616057301,0.002,3045.6,3044.8,0.001]
[1763616057302,0.405504,3045.3,3044.8,0.001]
[1763616057629,0.2947,3044.9,3044.8,0.001]
[1763616058214,0.78381993,3044.9,3044.8,0.001]
[1763616058718,5.83119667,3044.9,3044.8,0.001]
[1763616061789,2.54701657,3044.9,3044.8,0.001]
[1763616062124,2.65801657,3044.9,3044.8,0.001]
[1763616062285,2.16889664,3044.9,3044.8,0.001]
[1763616062512,1.12569264,3044.9,3044.8,0.001]
[1763616062761,0.1543,3045.4,3044.8,0.4788]
[1763616062959,0.112,3045.3,3044.8,0.9465]
[1763616064010,0.112,3045.3,3044.8,0.4788]
[1763616064249,0.5576936,3045.3,3044.8,0.4788]
[1763616064615,0.5576936,3045.3,3044.8,3.76306138]
[1763616065426,1.46468624,3045.3,3044.8,3.76306138]
[1763616065927,1.91888624,3045.3,3044.8,3.76306138]
[1763616066213,1.46468624,3045.3,3044.8,3.76306138]
[1763616066414,1.06129264,3045.4,3044.8,3.76306138]
[1763616066643,0.111,3045.3,3045.0,3.28407224]
[1763616067028,0.111,3045.3,3044.9,3.7518429]
[1763616070129,0.111,3045.3,3044.8,3.28524308]
[1763616070325,0.48053304,3045.3,3044.8,3.28524308]
[1763616070862,0.48053304,3045.3,3044.8,3.77774308]
[1763616072240,0.0410482,3045.2,3044.8,0.001]
[1763616072435,0.34768228,3045.2,3044.8,3.28528234]
[1763616072666,0.30663408,3045.2,3044.8,3.28528234]
[1763616072868,0.41763408,3045.3,3044.8,3.77778234]
[1763616073043,0.52850133,3045.3,3044.8,3.77778234]
[1763616073243,0.30663408,3045.2,3044.8,3.77778234]
[1763616073543,0.30663408,3045.1,3044.8,3.77778234]
[1763616073731,0.53050133,3045.3,3044.8,3.77778234]
[1763616074067,0.30716651,3045.2,3044.8,3.77778234]
[1763616074275,0.30716651,3045.1,3044.8,3.77778234]
[1763616074481,0.30716651,3045.0,3044.8,3.28528234]
[1763616074764,0.111,3044.9,3044.8,3.28528234]
[1763616075131,0.111,3044.9,3044.8,3.77388234]
[1763616075649,0.111,3044.9,3044.8,4.26638234]
[1763616076237,0.1864,3044.9,3044.8,3.28528234]
[1763616076444,0.1864,3044.9,3044.8,3.28528796]
[1763616076768,0.41843178,3045.1,3044.8,7.87930472]
[1763616076971,0.111,3045.1,3044.9,0.4925]
[1763616077131,0.111,3045.1,3045.0,0.4886]
[1763616077682,0.002,3045.3,3045.0,0.9811]
[1763616077853,0.002,3045.3,3045.2,0.6689]
[1763616078058,0.30942009,3045.3,3045.2,0.6689]
[1763616078378,0.30942009,3045.3,3045.2,4.44525656]
[1763616079080,0.42042009,3045.3,3045.2,4.44525656]
[1763616079376,0.42042009,3045.3,3045.2,3.95275656]
[1763616079981,0.42042009,3045.3,3045.2,4.44525656]
[1763616079982,0.30942009,3045.3,3045.2,4.44525656]
[1763616080155,0.002,3045.3,3045.2,5.21817845]
[1763616081549,0.002,3045.3,3045.2,3.95275656]
[1763616082774,0.002,3045.3,3045.2,8.49383961]
[1763616084280,0.002,3045.3,3045.2,3.28385656]
[1763616084487,0.002,3045.3,3045.2,3.77245656]
[1763616084981,0.002,3045.3,3045.2,4.26495656]
[1763616085780,0.002,3045.3,3045.2,3.77245656]
[1763616085949,0.002,3045.3,3045.2,4.26495656]
[1763616086549,0.002,3045.3,3045.2,5.03787845]
[1763616086800,0.002,3045.3,3045.2,9.0864615]
[1763616087091,0.002,3045.3,3045.2,9.99345414]
[1763616089266,0.002,3045.3,3045.2,5.94487109]
[1763616090275,0.002,3045.3,3045.2,5.95262488]
[1763616090491,0.002,3045.3,3045.2,5.94487109]
[1763616091960,0.002,3045.3,3045.2,5.95262488]
[1763616092356,0.002,3045.6,3045.2,12.520338]
[1763616092583,0.002,3045.6,3045.5,5.45187569]
[1763616092784,0.002,3045.6,3045.5,5.48166366]
[1763616092985,0.002,3045.6,3045.5,5.94816366]
[1763616093671,0.002,3045.6,3045.5,5.95590936]
[1763616093993,0.002,3045.6,3045.5,9.23944244]
[1763616094290,0.002,3045.6,3045.5,9.27634837]
[1763616094458,0.002,3045.6,3045.5,9.85384837]
[1763616099496,0.1716,3045.6,3045.5,0.85706826]
[1763616099695,0.405504,3044.9,3044.8,0.001]
[1763616099887,0.2261,3044.8,3043.8,3.28529854]
[1763616100198,0.877904,3044.6,3043.0,0.1882]
[1763616100400,1.5383797,3044.6,3043.4,3.28571866]
[1763616100604,1.6151797,3044.6,3043.5,3.28566927]
[1763616101184,5.50025041,3044.6,3043.1,6.5722454]
[1763616103501,5.50025041,3044.6,3043.1,7.0428454]
[1763616104907,0.79125006,3044.6,3043.7,3.96737102]
[1763616105106,0.6612,3044.6,3043.8,0.4706]
[1763616105310,1.56819264,3044.6,3043.9,3.28525904]
[1763616105604,0.4724,3044.6,3044.1,0.1936]
[1763616105807,0.5844,3044.6,3044.1,0.1936]
[1763616107106,1.56819264,3044.6,3043.9,6.57051808]
[1763616107412,1.37821936,3044.6,3043.5,3.28563518]
[1763616107609,1.49021936,3044.6,3043.6,0.4706]
[1763616107781,1.41341936,3044.6,3043.8,0.4706]
[1763616108411,1.41341936,3044.6,3044.1,0.1936]
[1763616108615,0.112,3044.6,3044.5,0.463]
[1763616108779,0.112,3044.7,3044.5,0.463]
[1763616109819,0.112,3044.9,3044.6,0.462]
[1763616110200,0.0502,3044.7,3044.5,3.28558066]
[1763616110376,0.112,3044.9,3044.5,3.28558066]
[1763616110377,0.0049,3044.6,3044.5,3.28558066]
[1763616112419,0.112,3044.9,3044.5,0.001]
[1763616113187,0.6113,3044.9,3044.5,0.001]
[1763616113385,1.09563155,3044.9,3044.5,0.001]
[1763616114034,0.112,3044.9,3044.5,0.001]
[1763616114233,0.5013,3045.7,3044.8,0.462]
[1763616114401,0.112,3045.5,3044.9,0.462]
[1763616114731,0.112,3045.5,3044.6,6.56900742]
[1763616114732,0.0502,3045.0,3044.6,6.56900742]
[1763616115223,0.0502,3045.0,3044.6,7.03960742]
[1763616116451,0.4948,3045.4,3044.6,7.03960742]
[1763616118448,0.4948,3045.4,3044.5,0.001]
[1763616118652,3.8195024,3045.4,3044.5,0.001]
[1763616118958,0.42815253,3045.3,3044.5,0.001]
[1763616119154,0.92745253,3045.3,3044.5,0.001]
[1763616120420,0.92745253,3045.3,3044.6,6.56900742]
[1763616120848,0.42815253,3045.3,3044.6,6.56900742]
[1763616121152,1.00989264,3045.6,3045.2,0.462]
[1763616121328,1.01899264,3045.5,3045.2,0.462]
[1763616121656,0.112,3045.5,3045.2,0.462]
[1763616121954,0.112,3045.4,3045.2,0.462]
[1763616122268,0.112,3045.4,3044.6,9.85351113]
[1763616122269,0.002,3045.6,3045.5,0.462]
[1763616122470,0.114,3045.6,3045.2,3.28385656]
[1763616122663,0.114,3045.6,3043.9,3.2851525]
[1763616122664,0.114,3045.6,3044.5,0.4716]
[1763616122875,0.114,3045.6,3044.6,7.03960742]
[1763616123161,0.114,3045.6,3044.6,8.07222674]
[1763616123352,0.15504281,3045.6,3044.7,0.4706]
[1763616123726,0.65434281,3045.6,3044.7,0.4706]
[1763616124360,0.65434281,3045.6,3044.8,6.56857592]
[1763616124664,0.112,3045.5,3044.8,9.85286388]
[1763616125051,0.112,3045.5,3044.8,6.56857592]
[1763616125449,0.112,3045.5,3044.9,0.4706]
[1763616125667,0.112,3045.4,3044.9,0.4706]
[1763616126458,0.002,3045.6,3045.3,0.462]
[1763616126626,0.112,3045.5,3045.3,0.462]
[1763616127071,0.112,3045.5,3045.2,3.28381288]
[1763616129370,0.002,3045.6,3045.2,3.28381288]
[1763616129570,0.112,3045.4,3045.2,3.28381288]
[1763616129935,0.002,3045.6,3045.3,0.9309]
[1763616130141,0.002,3045.6,3045.5,0.4515]
[1763616130358,0.114,3045.6,3045.5,0.4515]
[1763616130667,0.114,3045.6,3045.5,3.73503308]
[1763616130848,0.114,3045.6,3045.1,0.1936]
[1763616130849,0.5831,3045.6,3045.4,3.28359371]
[1763616131470,0.002,3045.6,3045.5,0.4515]
[1763616131689,0.114,3045.6,3045.5,0.4515]
[1763616131974,0.2063,3045.6,3045.4,3.28359371]
[1763616132668,0.0045,3045.5,3045.2,3.28385656]
[1763616132981,0.002,3045.6,3045.1,0.1903]
[1763616133136,0.112,3045.4,3045.1,0.6697]
[1763616133971,0.002,3045.6,3045.3,0.4515]
[1763616134171,0.112,3045.5,3045.3,0.4515]
[1763616134367,0.002,3045.6,3045.3,0.4515]
[1763616134585,0.002,3045.6,3045.5,0.4515]
[1763616134787,0.114,3045.6,3045.5,3.73503308]
[1763616135466,0.002,3045.6,3045.5,3.73503308]
[1763616135775,0.114,3045.6,3045.5,3.73503308]
[1763616137998,0.2063,3045.6,3045.1,3.47422215]
[1763616138159,0.2063,3045.6,3045.1,3.95362215]
[1763616138359,0.2063,3045.6,3045.1,3.47422215]
[1763616138576,0.2063,3045.6,3045.2,0.4794]
[1763616138997,0.2063,3045.6,3045.2,7.04711312]
[1763616141330,0.2063,3045.6,3045.2,6.56771312]
[1763616141507,0.6594,3045.6,3045.2,6.56771312]
[1763616141874,0.2063,3045.6,3045.2,6.56771312]
[1763616142970,0.0045,3045.3,3044.5,3.25651231]
[1763616143167,0.0045,3045.3,3044.6,6.57000742]
[1763616143992,0.0045,3045.3,3044.6,7.04940742]
[1763616144192,0.002,3045.6,3045.2,0.4515]
[1763616144407,0.111,3045.5,3044.7,3.25551231]
[1763616144704,0.111,3045.5,3044.9,2.77611231]
[1763616144906,0.111,3045.5,3045.0,6.56814448]
[1763616145512,0.111,3045.5,3045.0,7.04754448]
[1763616146512,0.78687649,3045.5,3045.0,3.28407224]
[1763616146710,0.78687649,3045.5,3045.0,6.56814448]
[1763616146915,0.0923,3045.1,3044.8,6.56857592]
[1763616149682,0.21917649,3045.5,3045.0,0.4727]
[1763616149990,0.111,3045.4,3045.0,0.4727]
[1763616150915,0.111,3045.4,3045.1,3.2839644]
[1763616150916,0.5621,3045.4,3045.1,3.2839644]
[1763616151418,0.0979,3045.2,3045.1,3.2839644]
[1763616152521,0.0979,3045.2,3044.7,3.2843728]
[1763616153051,0.0979,3045.2,3044.7,0.4568]
[1763616153838,0.111,3045.1,3044.7,0.4568]
[1763616154315,0.111,3045.1,3045.0,0.4727]
[1763616154816,0.111,3045.1,3045.0,4.21357224]
[1763616155763,0.30770981,3045.5,3045.0,7.49764448]
[1763616155917,0.111,3045.4,3045.0,7.49764448]
[1763616156116,0.111,3045.4,3045.0,4.21357224]
[1763616156418,0.111,3045.4,3045.0,3.75677224]
[1763616157249,0.5621,3045.4,3045.0,3.75677224]
[1763616157421,0.97762593,3045.4,3045.0,3.75677224]
[1763616157617,0.5621,3045.4,3045.0,7.04084448]
[1763616159438,0.5621,3045.4,3045.0,7.00677448]
[1763616160047,0.1316,3045.1,3044.7,6.56879166]
[1763616160257,0.111,3045.0,3044.7,6.56879166]
[1763616160748,0.111,3045.0,3044.7,7.04739166]
[1763616161051,0.111,3045.0,3044.9,0.4723]
[1763616162155,0.111,3045.0,3044.9,3.7564801]
[1763616162958,0.111,3045.0,3044.9,4.2350801]
[1763616163960,0.002,3045.4,3044.9,7.0406602]
[1763616164252,0.002,3045.4,3045.3,3.94824872]
[1763616164630,0.002,3045.4,3045.3,4.42684872]
[1763616177301,0.002,3045.4,3045.3,3.75604872]
[1763616177652,0.002,3045.4,3045.3,4.23464872]
[1763616178653,0.0867,3045.4,3044.6,0.001]
[1763616178856,0.4555,3044.4,3044.1,0.001]
[1763616179168,0.0809,3044.2,3044.1,0.001]
[1763616179578,0.1929,3044.2,3044.1,0.001]
[1763616179885,0.6455,3044.2,3044.1,0.001]
[1763616180189,1.163004,3044.2,3044.1,0.001]
[1763616181299,0.112,3044.2,3044.1,0.4733]
[1763616181790,0.1849,3044.2,3044.1,0.001]
[1763616184505,0.112,3044.2,3044.1,0.001]
[1763616186068,0.0729,3044.2,3044.1,0.001]
[1763616186292,0.1849,3044.2,3044.1,0.001]
[1763616187886,0.99246314,3044.2,3044.1,0.001]
[1763616188185,0.6455,3044.2,3044.1,0.001]
[1763616191096,3.93043528,3044.2,3044.1,0.001]
[1763616191267,0.6455,3044.2,3044.1,0.001]
[1763616191598,0.1849,3044.2,3044.1,0.001]
[1763616192397,0.112,3044.2,3044.1,0.001]
[1763616192608,0.1948,3044.2,3044.1,0.001]
[1763616194694,0.6455,3044.2,3044.1,0.001]
[1763616194888,0.84580926,3044.2,3044.1,0.001]
[1763616195087,0.39510926,3044.2,3044.1,0.001]
[1763616195783,0.84580926,3044.2,3044.1,0.001]
[1763616196181,0.77487095,3044.2,3044.1,0.001]
[1763616196382,0.88687095,3044.2,3044.1,0.001]
[1763616197303,0.32417095,3044.2,3044.1,0.001]
[1763616197508,0.112,3044.2,3044.1,1.1349]
[1763616199406,0.112,3044.2,3044.1,4.41994319]
[1763616200496,0.002,3044.3,3044.1,4.41994319]
[1763616200707,0.002,3044.3,3044.2,0.4954]
[1763616200874,0.114,3044.3,3044.2,0.4954]
[1763616201482,0.1968,3044.3,3044.1,3.28598864]
[1763616202232,0.002,3044.3,3044.2,0.946]
[1763616202519,0.114,3044.3,3044.2,0.946]
[1763616202814,0.002,3044.3,3044.2,0.946]
[1763616203107,0.114,3044.3,3044.2,0.946]
[1763616203507,0.114,3044.3,3044.2,3.78033528]
[1763616203882,0.1968,3044.3,3044.1,3.28602521]
[1763616204083,0.0045,3044.2,3044.1,3.28602521]
[1763616204609,0.112,3044.2,3044.1,3.28602521]
[1763616204999,0.112,3044.2,3044.1,4.41992521]
[1763616205519,0.112,3044.2,3044.1,3.96932521]
[1763616206573,0.1948,3044.2,3044.1,3.28602521]
[1763616207489,0.1948,3044.2,3044.1,0.001]
[1763616207490,0.6455,3044.2,3044.1,0.001]
[1763616207879,1.48201594,3044.2,3044.1,0.001]
[1763616208274,5.17245522,3044.2,3044.1,0.001]
[1763616208478,6.78912858,3044.2,3044.1,0.001]
[1763616208675,6.87958981,3044.2,3044.1,0.001]
[1763616212827,6.87998009,3044.2,3044.1,0.001]
[1763616213532,6.76798009,3044.2,3044.1,0.001]
[1763616213733,6.87998009,3044.2,3044.1,0.001]
[1763616214431,6.31728009,3044.2,3044.1,0.001]
[1763616214601,6.42928009,3044.2,3044.1,0.001]
[1763616214994,6.76798009,3044.2,3044.1,0.001]
[1763616215195,5.91177609,3044.2,3044.1,0.001]
[1763616215535,6.87998009,3044.2,3044.1,0.001]
[1763616216237,6.76798009,3044.2,3044.1,0.001]
[1763616216394,9.6596635,3044.2,3044.1,0.001]
[1763616218825,6.87998009,3044.2,3044.1,0.001]
[1763616219533,0.79584453,3044.2,3044.1,0.4683]
[1763616219735,0.41979857,3044.2,3044.1,0.4683]
[1763616219936,0.002,3044.3,3044.1,0.4683]
[1763616220136,0.112,3044.2,3044.1,0.001]
[1763616220426,0.1533,3044.2,3044.1,0.001]
[1763616220637,0.68622623,3044.2,3044.1,0.001]
[1763616221226,1.17802623,3044.2,3044.1,0.001]
[1763616221395,6.07861521,3044.2,3044.1,0.001]
[1763616222436,6.21014288,3044.2,3044.1,0.001]
[1763616222597,6.25120457,3044.2,3044.1,0.001]
[1763616224028,5.75940457,3044.2,3044.1,0.001]
[1763616224930,6.25120457,3044.2,3044.1,0.001]
[1763616225524,6.65670857,3044.2,3044.1,0.001]
[1763616225738,6.61564688,3044.2,3044.1,0.001]
[1763616227427,9.39533029,3044.2,3044.1,0.001]
[1763616228015,8.90353029,3044.2,3044.1,0.001]
[1763616228209,9.39533029,3044.2,3044.1,0.001]
[1763616228937,6.01184688,3044.2,3044.1,0.001]
[1763616229229,6.65645401,3044.2,3044.1,0.001]
[1763616229428,6.61539232,3044.2,3044.1,0.001]
[1763616229603,9.39407573,3044.2,3044.1,0.001]
[1763616231028,9.28307573,3044.2,3044.1,0.001]
[1763616231325,9.39407573,3044.2,3044.1,0.001]
[1763616232530,8.90227573,3044.2,3044.1,0.001]
[1763616232900,8.79127573,3044.2,3044.1,0.001]
[1763616233302,1.92319771,3044.2,3044.1,1.1338]
[1763616233623,2.03419771,3044.2,3044.1,0.4683]
[1763616233825,1.7266537,3044.2,3044.1,0.4683]
[1763616234029,5.3192582,3044.2,3044.1,0.4683]
[1763616234635,5.3192582,3044.2,3044.1,0.001]
[1763616235237,6.19711589,3044.2,3044.1,0.001]
[1763616235424,6.64391989,3044.2,3044.1,0.001]
[1763616236226,6.12741589,3044.2,3044.1,0.001]
[1763616236413,6.64391989,3044.2,3044.1,0.001]
[1763616238539,7.13571989,3044.2,3044.1,0.001]
[1763616239635,6.64391989,3044.2,3044.1,0.001]
[1763616241913,6.60963934,3044.2,3044.1,0.001]
[1763616242114,7.10143934,3044.2,3044.1,0.001]
[1763616242328,7.10188768,3044.2,3044.1,0.001]
[1763616243659,6.49908768,3044.2,3044.1,0.001]
[1763616243828,7.45596555,3044.2,3044.1,0.001]
[1763616244025,7.50176555,3044.2,3044.1,0.001]
[1763616244834,6.61458768,3044.2,3044.1,0.001]
[1763616245662,2.00049071,3044.2,3044.1,0.4683]
[1763616245831,2.40599471,3044.2,3044.1,0.9469]
[1763616246031,1.88949071,3044.2,3044.1,0.9469]
[1763616246348,2.00049071,3044.2,3044.1,0.9469]
[1763616246750,2.00049071,3044.2,3044.1,1.1338]
[1763616247964,1.88949071,3044.2,3044.1,1.1338]
[1763616248131,2.00049071,3044.2,3044.1,1.1338]
[1763616248828,1.88949071,3044.2,3044.1,1.1338]
[1763616249035,2.00049071,3044.2,3044.1,1.57579509]
[1763616249452,2.00049071,3044.2,3044.1,1.1338]
[1763616251437,1.88949071,3044.2,3044.1,1.1338]
[1763616251769,2.00249071,3044.2,3044.1,1.1338]
[1763616252151,0.42111756,3044.2,3044.1,1.1338]
[1763616252463,0.113,3044.2,3044.1,1.1338]
[1763616252627,0.113,3044.2,3044.1,1.85376271]
[1763616253275,0.113,3044.2,3044.1,5.1388059]
[1763616253460,0.113,3044.2,3044.1,7.91848931]
[1763616253661,0.113,3044.2,3044.1,5.1388059]
[1763616253861,0.113,3044.2,3044.1,1.85376271]
[1763616254095,0.002,3044.2,3044.1,1.85376271]
[1763616254288,0.113,3044.2,3044.1,1.85376271]
[1763616254950,0.113,3044.2,3044.1,1.1338]
[1763616255136,0.113,3044.2,3044.1,1.1449]
[1763616255342,0.113,3044.2,3044.1,4.42994319]
[1763616255760,0.113,3044.2,3044.1,7.2096266]
[1763616258394,0.002,3044.2,3044.1,7.2096266]
[1763616258580,0.002,3044.2,3044.1,8.5371724]
[1763616259114,0.002,3044.2,3044.1,11.31685581]
[1763616259459,0.002,3044.2,3044.1,9.44416504]
[1763616260691,0.002,3044.2,3044.1,12.22384845]
[1763616263584,0.002,3044.2,3044.1,9.44416504]
[1763616263999,0.002,3044.2,3044.1,12.22384845]
[1763616265423,0.002,3044.2,3044.1,9.44416504]
[1763616266001,0.002,3044.2,3044.1,12.22384845]
[1763616268310,0.002,3044.3,3044.1,15.50889164]
[1763616268495,0.002,3044.3,3044.2,2.64726973]
[1763616270316,0.002,3044.3,3044.2,5.93220501]
[1763616270980,0.002,3044.3,3044.2,6.83919765]
[1763616271185,0.002,3044.3,3044.2,6.83141567]
[1763616274187,0.002,3044.3,3044.0,3.39714797]
[1763616274188,0.887604,3044.2,3044.0,0.001]
[1763616274412,0.0554,3044.1,3044.0,0.001]
[1763616274599,0.938804,3044.1,3044.0,0.001]
[1763616275287,4.02520816,3044.1,3044.0,0.001]
[1763616275488,4.87837607,3044.1,3044.0,0.001]
[1763616276434,8.16341926,3044.1,3044.0,0.001]
[1763616276923,5.38373585,3044.1,3044.0,0.001]
[1763616278920,2.09869266,3044.1,3044.0,0.001]
[1763616279230,5.49573585,3044.1,3044.0,0.001]
[1763616279722,2.21069266,3044.1,3044.0,0.001]
[1763616280314,5.49554095,3044.1,3044.0,0.001]
[1763616280515,5.1890151,3044.1,3044.0,0.001]
[1763616285494,12.62538766,3044.1,3044.0,0.001]
[1763616285797,12.57296474,3044.1,3044.0,0.001]
[1763616286497,12.57291099,3044.1,3044.0,0.001]
[1763616287023,11.50248991,3044.1,3044.0,0.001]
[1763616287706,11.50448991,3044.1,3044.0,0.001]
[1763616288227,6.40419391,3044.1,3044.0,0.001]
[1763616291212,9.80564994,3044.1,3044.0,0.001]
[1763616291413,9.76458691,3044.1,3044.0,0.001]
[1763616292529,6.40419391,3044.1,3044.0,0.001]
[1763616293361,12.84419391,3044.1,3044.0,0.001]
[1763616293518,23.56828802,3044.1,3044.0,0.001]
[1763616293934,23.35039002,3044.1,3044.0,0.001]
[1763616294128,22.62459002,3044.1,3044.0,0.001]
[1763616294826,22.66075602,3044.1,3044.0,0.001]
[1763616295137,23.69575602,3044.1,3044.0,0.001]
[1763616295338,22.76517502,3044.1,3044.0,0.001]
[1763616295539,22.83425002,3044.1,3044.0,0.001]
[1763616295710,22.49189685,3044.1,3044.0,0.001]
[1763616296047,22.7979009,3044.1,3044.0,0.001]
[1763616296538,20.1059409,3044.1,3044.0,0.001]
[1763616296746,18.7574759,3044.1,3044.0,0.001]